[Event "Early-Titled-Tuesday-Blitz-October-10-2023"]
[Site "Chess.com"]
[Date "2023.10.10"]
[Round "3"]
[White "Aswathchess"]
[Black "unclear15"]
[Result "1-0"]
[WhiteElo "2617"]
[BlackElo "2432"]
[TimeControl "180+1"]
[EndTime "8:26:58 PDT"]
[Termination "Aswathchess won by checkmate"]

1. d4 {[%clk 0:03:00.9]} 1... Nf6 {[%clk 0:02:58.3]} 2. c4 {[%clk 0:03:00.1]}
2... g6 {[%clk 0:02:54]} 3. Nc3 {[%clk 0:02:59.2]} 3... d5 {[%clk 0:02:50.7]} 4.
Nf3 {[%clk 0:02:52.3]} 4... Bg7 {[%clk 0:02:49.9]} 5. cxd5 {[%clk 0:02:41.3]}
5... Nxd5 {[%clk 0:02:48.8]} 6. Bd2 {[%clk 0:02:41.9]} 6... O-O {[%clk
0:02:48.1]} 7. e3 {[%clk 0:02:41.2]} 7... c5 {[%clk 0:02:44.7]} 8. Bc4 {[%clk
0:02:40.5]} 8... Nxc3 {[%clk 0:02:42.7]} 9. bxc3 {[%clk 0:02:39.9]} 9... Qc7
{[%clk 0:02:35]} 10. Bd3 {[%clk 0:02:36.5]} 10... b6 {[%clk 0:02:31.1]} 11. O-O
{[%clk 0:02:32.6]} 11... Nc6 {[%clk 0:02:28.9]} 12. Qe2 {[%clk 0:02:30.9]} 12...
Na5 {[%clk 0:02:05.6]} 13. e4 {[%clk 0:02:29.2]} 13... Bb7 {[%clk 0:02:00]} 14.
h4 {[%clk 0:02:18.4]} 14... Rfd8 {[%clk 0:01:53.8]} 15. Rac1 {[%clk 0:02:17.8]}
15... Qd7 {[%clk 0:01:46.1]} 16. d5 {[%clk 0:01:55.7]} 16... e6 {[%clk
0:01:18.7]} 17. c4 {[%clk 0:01:54.8]} 17... exd5 {[%clk 0:01:16.9]} 18. cxd5
{[%clk 0:01:54.2]} 18... Qa4 {[%clk 0:00:57.8]} 19. h5 {[%clk 0:01:31.1]} 19...
c4 {[%clk 0:00:52.1]} 20. Bc2 {[%clk 0:01:27.8]} 20... Qxa2 {[%clk 0:00:49.1]}
21. h6 {[%clk 0:01:27.6]} 21... Bh8 {[%clk 0:00:43.1]} 22. Bb1 {[%clk
0:01:24.5]} 22... Qb2 {[%clk 0:00:40]} 23. Rc2 {[%clk 0:01:13.2]} 23... Qb5
{[%clk 0:00:30.7]} 24. Ng5 {[%clk 0:01:04.6]} 24... Nb3 {[%clk 0:00:20.4]} 25.
Qf3 {[%clk 0:01:03.9]} 25... Qd7 {[%clk 0:00:19]} 26. Bc3 {[%clk 0:01:03.5]}
26... Bxc3 {[%clk 0:00:17]} 27. Qxc3 {[%clk 0:01:03.6]} 27... Qg4 {[%clk
0:00:15.6]} 28. Qg7# {[%clk 0:01:02.9]} 1-0

[Event "Early-Titled-Tuesday-Blitz-October-10-2023"]
[Site "Chess.com"]
[Date "2023.10.10"]
[Round "3"]
[White "Maksimus1998"]
[Black "Balla_Tamas"]
[Result "1-0"]
[WhiteElo "2612"]
[BlackElo "2428"]
[TimeControl "180+1"]
[EndTime "8:27:01 PDT"]
[Termination "Maksimus1998 won by resignation"]

1. d4 {[%clk 0:03:00.9]} 1... d5 {[%clk 0:02:59.5]} 2. Nf3 {[%clk 0:03:00.9]}
2... Nf6 {[%clk 0:02:59.6]} 3. Bf4 {[%clk 0:03:01]} 3... e6 {[%clk 0:02:59.8]}
4. e3 {[%clk 0:03:00.6]} 4... Bd6 {[%clk 0:03:00.3]} 5. Bg3 {[%clk 0:03:00.4]}
5... O-O {[%clk 0:02:59.3]} 6. Nbd2 {[%clk 0:02:59.9]} 6... b6 {[%clk
0:02:59.1]} 7. c3 {[%clk 0:02:58.2]} 7... c5 {[%clk 0:02:59.2]} 8. Bd3 {[%clk
0:02:57.2]} 8... Ba6 {[%clk 0:02:59.6]} 9. Bxa6 {[%clk 0:02:56.9]} 9... Nxa6
{[%clk 0:03:00.5]} 10. Qe2 {[%clk 0:02:56.6]} 10... Nb8 {[%clk 0:02:59.9]} 11.
O-O-O {[%clk 0:02:54.1]} 11... c4 {[%clk 0:02:51.4]} 12. e4 {[%clk 0:02:52.9]}
12... Bxg3 {[%clk 0:02:50.9]} 13. hxg3 {[%clk 0:02:52.5]} 13... dxe4 {[%clk
0:02:40]} 14. Nxe4 {[%clk 0:02:51.8]} 14... Nbd7 {[%clk 0:02:40.4]} 15. Kb1
{[%clk 0:02:44.1]} 15... h6 {[%clk 0:02:27.4]} 16. Nxf6+ {[%clk 0:02:41.2]}
16... Nxf6 {[%clk 0:02:26.3]} 17. Qxc4 {[%clk 0:02:40.8]} 17... Rb8 {[%clk
0:02:06.2]} 18. Ne5 {[%clk 0:02:39.3]} 18... b5 {[%clk 0:02:05.6]} 19. Qe2
{[%clk 0:02:37]} 19... b4 {[%clk 0:02:05.3]} 20. Nc6 {[%clk 0:02:23.1]} 20...
Qb6 {[%clk 0:01:37.4]} 21. Nxb8 {[%clk 0:02:22.9]} 21... bxc3 {[%clk 0:01:35.1]}
22. Na6 {[%clk 0:02:19.8]} 22... Nd5 {[%clk 0:01:17.6]} 23. Nc5 {[%clk
0:02:12.5]} 23... cxb2 {[%clk 0:00:45.4]} 24. Qxb2 {[%clk 0:02:10.1]} 24... Nc3+
{[%clk 0:00:37.2]} 25. Ka1 {[%clk 0:02:10]} 25... Nxd1 {[%clk 0:00:37.4]} 26.
Rxd1 {[%clk 0:01:35.4]} 26... Qc6 {[%clk 0:00:36.5]} 27. f3 {[%clk 0:01:32]}
27... Rd8 {[%clk 0:00:21.5]} 28. Nb3 {[%clk 0:01:28]} 28... h5 {[%clk
0:00:20.5]} 29. Qc1 {[%clk 0:01:25.1]} 29... Qd6 {[%clk 0:00:20.8]} 30. Qg5
{[%clk 0:01:20.8]} 30... g6 {[%clk 0:00:20]} 31. g4 {[%clk 0:01:20.1]} 31...
hxg4 {[%clk 0:00:19.7]} 32. Rh1 {[%clk 0:01:14]} 32... gxf3 {[%clk 0:00:06.7]}
33. Qf6 {[%clk 0:01:11.1]} 1-0

[Event "Early-Titled-Tuesday-Blitz-October-10-2023"]
[Site "Chess.com"]
[Date "2023.10.10"]
[Round "3"]
[White "Zurability"]
[Black "Smiechu"]
[Result "0-1"]
[WhiteElo "2726"]
[BlackElo "2495"]
[TimeControl "180+1"]
[EndTime "8:27:04 PDT"]
[Termination "Smiechu won on time"]

1. Nf3 {[%clk 0:03:00.9]} 1... Nf6 {[%clk 0:02:59.5]} 2. g3 {[%clk 0:03:01.4]}
2... c5 {[%clk 0:02:59.4]} 3. Bg2 {[%clk 0:03:02.1]} 3... Nc6 {[%clk 0:03:00]}
4. O-O {[%clk 0:03:02.7]} 4... g6 {[%clk 0:03:00.5]} 5. c4 {[%clk 0:03:02.2]}
5... Bg7 {[%clk 0:03:00.8]} 6. d4 {[%clk 0:03:01]} 6... cxd4 {[%clk 0:03:00.5]}
7. Nxd4 {[%clk 0:03:01.9]} 7... O-O {[%clk 0:03:00.6]} 8. Nc3 {[%clk 0:03:02]}
8... d6 {[%clk 0:03:00.9]} 9. Nxc6 {[%clk 0:03:01.9]} 9... bxc6 {[%clk
0:03:01.3]} 10. Bxc6 {[%clk 0:03:02.8]} 10... Rb8 {[%clk 0:03:01.8]} 11. Bg2
{[%clk 0:03:02.5]} 11... Qa5 {[%clk 0:03:01.8]} 12. Rb1 {[%clk 0:02:49.4]} 12...
Be6 {[%clk 0:02:49.8]} 13. Qd3 {[%clk 0:02:45.9]} 13... Nd7 {[%clk 0:02:42.8]}
14. Nd5 {[%clk 0:02:12.5]} 14... Bxd5 {[%clk 0:02:38.6]} 15. Bxd5 {[%clk
0:02:02.6]} 15... Nc5 {[%clk 0:02:26]} 16. Qc2 {[%clk 0:01:25.1]} 16... Qxa2
{[%clk 0:02:18.7]} 17. Bg5 {[%clk 0:01:23.1]} 17... Rfe8 {[%clk 0:01:45.5]} 18.
Ra1 {[%clk 0:01:07.8]} 18... Qxb2 {[%clk 0:01:37]} 19. Qxb2 {[%clk 0:01:07]}
19... Rxb2 {[%clk 0:01:37]} 20. Rxa7 {[%clk 0:01:07.4]} 20... Rxe2 {[%clk
0:01:32.4]} 21. Bc6 {[%clk 0:01:06.7]} 21... Rc8 {[%clk 0:01:27.7]} 22. Bf3
{[%clk 0:00:51.8]} 22... Rc2 {[%clk 0:01:27.1]} 23. Bxe7 {[%clk 0:00:49.5]}
23... Bd4 {[%clk 0:01:18.8]} 24. Bxd6 {[%clk 0:00:27.9]} 24... Nd3 {[%clk
0:01:15.3]} 25. Rd7 {[%clk 0:00:22.7]} 25... Nxf2 {[%clk 0:01:09.7]} 26. Bf4
{[%clk 0:00:17.3]} 26... Bc5 {[%clk 0:00:58.2]} 27. Re1 {[%clk 0:00:03.6]} 27...
Ng4+ {[%clk 0:00:54.1]} 0-1

[Event "Early-Titled-Tuesday-Blitz-October-10-2023"]
[Site "Chess.com"]
[Date "2023.10.10"]
[Round "3"]
[White "forevery0ung"]
[Black "MrTattaglia"]
[Result "0-1"]
[WhiteElo "2680"]
[BlackElo "2911"]
[TimeControl "180+1"]
[EndTime "8:27:09 PDT"]
[Termination "MrTattaglia won on time"]

1. e4 {[%clk 0:03:00.9]} 1... c5 {[%clk 0:02:59.2]} 2. Nf3 {[%clk 0:03:01]} 2...
a6 {[%clk 0:02:58.8]} 3. Be2 {[%clk 0:02:59.3]} 3... b5 {[%clk 0:02:58.3]} 4. d4
{[%clk 0:02:58.5]} 4... cxd4 {[%clk 0:02:57.7]} 5. Nxd4 {[%clk 0:02:59]} 5...
Bb7 {[%clk 0:02:58]} 6. O-O {[%clk 0:02:59.6]} 6... Bxe4 {[%clk 0:02:57.2]} 7.
a4 {[%clk 0:02:52.3]} 7... bxa4 {[%clk 0:02:53.8]} 8. Nc3 {[%clk 0:02:47.4]}
8... Bb7 {[%clk 0:02:52.3]} 9. Re1 {[%clk 0:02:46.9]} 9... Nf6 {[%clk
0:02:51.7]} 10. Bf3 {[%clk 0:02:40.6]} 10... Qc8 {[%clk 0:02:51.5]} 11. Rxa4
{[%clk 0:02:37.4]} 11... e6 {[%clk 0:02:50.9]} 12. Bf4 {[%clk 0:02:26.3]} 12...
Nc6 {[%clk 0:02:46.1]} 13. Nf5 {[%clk 0:02:22.7]} 13... Nd8 {[%clk 0:02:37.5]}
14. Bd6 {[%clk 0:02:05.2]} 14... Bxf3 {[%clk 0:02:36.3]} 15. Qxf3 {[%clk
0:01:59.8]} 15... Nb7 {[%clk 0:02:30]} 16. Be5 {[%clk 0:01:01.9]} 16... Qc6
{[%clk 0:02:04.6]} 17. Qg3 {[%clk 0:00:58.3]} 17... d6 {[%clk 0:01:33.6]} 18.
Bd4 {[%clk 0:00:35.6]} 18... O-O-O {[%clk 0:01:21.1]} 19. Ne3 {[%clk 0:00:23.8]}
19... d5 {[%clk 0:01:19.8]} 20. Rea1 {[%clk 0:00:20.5]} 20... a5 {[%clk
0:01:20]} 21. Qf3 {[%clk 0:00:12.4]} 21... Bb4 {[%clk 0:01:14.9]} 22. Na2 {[%clk
0:00:07.6]} 22... Qxa4 {[%clk 0:01:13.4]} 23. b3 {[%clk 0:00:03]} 23... Qc6
{[%clk 0:01:11]} 24. Qg3 {[%clk 0:00:02.7]} 24... Rhg8 {[%clk 0:01:03.3]} 25.
Nxb4 {[%clk 0:00:02.1]} 25... axb4 {[%clk 0:01:03.6]} 26. Ra7 {[%clk 0:00:01.8]}
26... Ne4 {[%clk 0:01:01.6]} 27. Qf4 {[%clk 0:00:01.6]} 27... f6 {[%clk
0:01:01.1]} 28. f3 {[%clk 0:00:01.9]} 28... Ned6 {[%clk 0:00:59.2]} 29. Qg3
{[%clk 0:00:01.1]} 29... e5 {[%clk 0:00:57.1]} 0-1

[Event "Early-Titled-Tuesday-Blitz-October-10-2023"]
[Site "Chess.com"]
[Date "2023.10.10"]
[Round "3"]
[White "marcodobrikov"]
[Black "themind1hunter"]
[Result "1-0"]
[WhiteElo "2770"]
[BlackElo "2542"]
[TimeControl "180+1"]
[EndTime "8:27:12 PDT"]
[Termination "marcodobrikov won by resignation"]

1. Nc3 {[%clk 0:03:00.4]} 1... d5 {[%clk 0:02:54.1]} 2. e4 {[%clk 0:03:01.2]}
2... d4 {[%clk 0:02:53.7]} 3. Nce2 {[%clk 0:03:01.9]} 3... c5 {[%clk 0:02:52.7]}
4. Ng3 {[%clk 0:03:02.8]} 4... Nc6 {[%clk 0:02:52]} 5. Bb5 {[%clk 0:03:02.7]}
5... Bd7 {[%clk 0:02:50.5]} 6. Bxc6 {[%clk 0:03:03]} 6... Bxc6 {[%clk
0:02:50.1]} 7. d3 {[%clk 0:03:03.9]} 7... g6 {[%clk 0:02:46.2]} 8. f4 {[%clk
0:03:04.8]} 8... Bg7 {[%clk 0:02:46.4]} 9. Nf3 {[%clk 0:03:05.3]} 9... b5 {[%clk
0:02:41.6]} 10. O-O {[%clk 0:03:06.1]} 10... Nf6 {[%clk 0:02:41]} 11. f5 {[%clk
0:03:06.2]} 11... O-O {[%clk 0:02:38.4]} 12. Bg5 {[%clk 0:03:04.6]} 12... Ng4
{[%clk 0:02:27.1]} 13. Qc1 {[%clk 0:03:02.8]} 13... Rc8 {[%clk 0:02:19.5]} 14.
Rf2 {[%clk 0:02:47.2]} 14... Nxf2 {[%clk 0:02:07.3]} 15. Kxf2 {[%clk 0:02:47.3]}
15... c4 {[%clk 0:02:04.4]} 16. Qd2 {[%clk 0:02:45.9]} 16... c3 {[%clk 0:01:56]}
17. bxc3 {[%clk 0:02:45.2]} 17... dxc3 {[%clk 0:01:56]} 18. Qe3 {[%clk
0:02:44.3]} 18... Qb6 {[%clk 0:01:48.8]} 19. Qxb6 {[%clk 0:02:40.5]} 19... axb6
{[%clk 0:01:49.7]} 20. Bxe7 {[%clk 0:02:41.4]} 20... Rfe8 {[%clk 0:01:48.8]} 21.
f6 {[%clk 0:02:40.3]} 21... Bf8 {[%clk 0:01:49]} 22. Bxf8 {[%clk 0:02:39.3]}
22... Kxf8 {[%clk 0:01:49.7]} 23. Ne2 {[%clk 0:02:37.8]} 23... Bd7 {[%clk
0:01:44.2]} 24. Rb1 {[%clk 0:02:30.4]} 24... Rc5 {[%clk 0:01:26.1]} 25. d4
{[%clk 0:02:27.4]} 25... Rc7 {[%clk 0:01:21.8]} 26. Ke3 {[%clk 0:02:25.1]} 26...
Bf5 {[%clk 0:01:18.9]} 27. Ne5 {[%clk 0:02:24.5]} 27... Be6 {[%clk 0:01:13.2]}
28. Rxb5 {[%clk 0:02:21.6]} 28... Bxa2 {[%clk 0:01:13.3]} 29. Rxb6 {[%clk
0:02:22.5]} 29... Be6 {[%clk 0:01:10.1]} 30. Kd3 {[%clk 0:02:20.3]} 30... Ra8
{[%clk 0:00:53.8]} 31. d5 {[%clk 0:02:20.6]} 31... Bc8 {[%clk 0:00:48.7]} 32.
Nxc3 {[%clk 0:02:20.3]} 32... Ra3 {[%clk 0:00:47.1]} 33. Nc6 {[%clk 0:02:09.7]}
33... Bb7 {[%clk 0:00:36.2]} 34. Kd4 {[%clk 0:02:02.6]} 34... Ra6 {[%clk
0:00:36.4]} 35. Rxa6 {[%clk 0:02:00.3]} 35... Bxa6 {[%clk 0:00:37.3]} 36. e5
{[%clk 0:01:56.6]} 36... Bb7 {[%clk 0:00:35.3]} 37. Kc5 {[%clk 0:01:56.4]} 37...
Rc8 {[%clk 0:00:31.4]} 38. Nb5 {[%clk 0:01:54.6]} 38... Ra8 {[%clk 0:00:29.8]}
39. Kb6 {[%clk 0:01:54.3]} 39... Bc8 {[%clk 0:00:29.1]} 40. Nd6 {[%clk
0:01:53.3]} 40... Bd7 {[%clk 0:00:24.6]} 41. c4 {[%clk 0:01:49.2]} 41... Ra2
{[%clk 0:00:22.1]} 42. Kc7 {[%clk 0:01:46.4]} 42... Bg4 {[%clk 0:00:19.5]} 43.
h3 {[%clk 0:01:40.3]} 43... Bd1 {[%clk 0:00:17.9]} 44. e6 {[%clk 0:01:40.4]}
44... fxe6 {[%clk 0:00:13.3]} 45. dxe6 {[%clk 0:01:41.2]} 1-0

[Event "Early-Titled-Tuesday-Blitz-October-10-2023"]
[Site "Chess.com"]
[Date "2023.10.10"]
[Round "3"]
[White "N4700000"]
[Black "Amirreza_p"]
[Result "0-1"]
[WhiteElo "2392"]
[BlackElo "2591"]
[TimeControl "180+1"]
[EndTime "8:27:14 PDT"]
[Termination "Amirreza_p won by resignation"]

1. e4 {[%clk 0:03:00.9]} 1... e6 {[%clk 0:02:58]} 2. d4 {[%clk 0:02:53.8]} 2...
d5 {[%clk 0:02:57.3]} 3. Bd3 {[%clk 0:02:53]} 3... dxe4 {[%clk 0:02:53.7]} 4.
Bxe4 {[%clk 0:02:53.9]} 4... Nf6 {[%clk 0:02:51.3]} 5. Bf3 {[%clk 0:02:54.4]}
5... c5 {[%clk 0:02:50.5]} 6. Ne2 {[%clk 0:02:53]} 6... Nc6 {[%clk 0:02:48]} 7.
Be3 {[%clk 0:02:51.1]} 7... cxd4 {[%clk 0:02:46.3]} 8. Nxd4 {[%clk 0:02:49.4]}
8... Ne5 {[%clk 0:02:46.4]} 9. O-O {[%clk 0:02:39.8]} 9... a6 {[%clk 0:02:43.6]}
10. c4 {[%clk 0:02:20.4]} 10... Qc7 {[%clk 0:02:41.1]} 11. Be2 {[%clk
0:01:49.8]} 11... Bd6 {[%clk 0:02:36.7]} 12. f4 {[%clk 0:01:42.8]} 12... Ng6
{[%clk 0:02:28.7]} 13. g3 {[%clk 0:01:32.1]} 13... O-O {[%clk 0:02:25.6]} 14.
Nc3 {[%clk 0:01:26.3]} 14... Bc5 {[%clk 0:02:23.4]} 15. Qe1 {[%clk 0:01:11.6]}
15... e5 {[%clk 0:02:20.8]} 16. fxe5 {[%clk 0:01:07.1]} 16... Qxe5 {[%clk
0:02:21.7]} 17. Qf2 {[%clk 0:00:57.4]} 17... Re8 {[%clk 0:02:17.7]} 18. Nd1
{[%clk 0:00:19.1]} 18... Re7 {[%clk 0:02:08.2]} 19. Bf3 {[%clk 0:00:16.1]} 19...
Ng4 {[%clk 0:01:55.2]} 20. Bxg4 {[%clk 0:00:15.7]} 20... Bxg4 {[%clk 0:01:55.5]}
21. Nc2 {[%clk 0:00:15.4]} 21... Bd6 {[%clk 0:01:34.7]} 22. Bf4 {[%clk
0:00:14.3]} 22... Nxf4 {[%clk 0:01:33.5]} 23. gxf4 {[%clk 0:00:13.9]} 23... Qh5
{[%clk 0:01:25]} 24. Nde3 {[%clk 0:00:14.1]} 24... Bc5 {[%clk 0:01:25.4]} 25.
Qg3 {[%clk 0:00:13.9]} 25... Rae8 {[%clk 0:01:23.9]} 26. Rae1 {[%clk 0:00:14.5]}
26... Be2 {[%clk 0:01:12.6]} 27. Rf2 {[%clk 0:00:13.2]} 27... Bxe3 {[%clk
0:01:03.7]} 28. Nxe3 {[%clk 0:00:12.7]} 28... Rxe3 {[%clk 0:01:04.6]} 29. Qg2
{[%clk 0:00:09.4]} 29... R3e4 {[%clk 0:00:52.6]} 30. b3 {[%clk 0:00:08.1]} 30...
f5 {[%clk 0:00:52]} 0-1

[Event "Early-Titled-Tuesday-Blitz-October-10-2023"]
[Site "Chess.com"]
[Date "2023.10.10"]
[Round "3"]
[White "adotand"]
[Black "DeArron_Fox"]
[Result "1-0"]
[WhiteElo "2860"]
[BlackElo "2516"]
[TimeControl "180+1"]
[EndTime "8:27:16 PDT"]
[Termination "adotand won on time"]

1. c4 {[%clk 0:02:58]} 1... e6 {[%clk 0:02:59.4]} 2. Nf3 {[%clk 0:02:58.2]} 2...
d5 {[%clk 0:02:59.9]} 3. g3 {[%clk 0:02:58.9]} 3... Nf6 {[%clk 0:03:00.3]} 4.
Bg2 {[%clk 0:02:59.6]} 4... Be7 {[%clk 0:03:01]} 5. O-O {[%clk 0:03:00.3]} 5...
O-O {[%clk 0:03:01.7]} 6. d4 {[%clk 0:03:00.9]} 6... c6 {[%clk 0:03:02]} 7. b3
{[%clk 0:02:59.7]} 7... b6 {[%clk 0:03:00.4]} 8. Bb2 {[%clk 0:03:00.4]} 8... Ba6
{[%clk 0:02:58]} 9. Nbd2 {[%clk 0:03:01]} 9... Nbd7 {[%clk 0:02:58.6]} 10. a4
{[%clk 0:02:58.6]} 10... Rc8 {[%clk 0:02:41.1]} 11. a5 {[%clk 0:02:50.6]} 11...
bxa5 {[%clk 0:02:39]} 12. Bc3 {[%clk 0:02:51.1]} 12... c5 {[%clk 0:02:01.6]} 13.
Bxa5 {[%clk 0:02:42.4]} 13... Qe8 {[%clk 0:01:59.3]} 14. Bc3 {[%clk 0:02:30.1]}
14... Rc6 {[%clk 0:01:33.9]} 15. Ne5 {[%clk 0:02:29.9]} 15... Rb6 {[%clk
0:01:19.1]} 16. Ndf3 {[%clk 0:01:44.2]} 16... Ne4 {[%clk 0:00:32.4]} 17. Ba5
{[%clk 0:01:42.2]} 17... Rb7 {[%clk 0:00:28.1]} 18. Nxd7 {[%clk 0:01:36.8]}
18... Qxd7 {[%clk 0:00:29]} 19. Ne5 {[%clk 0:01:37.5]} 19... Qc8 {[%clk
0:00:26.7]} 20. Rc1 {[%clk 0:01:10.4]} 20... Bf6 {[%clk 0:00:08.6]} 21. Re1
{[%clk 0:00:53.1]} 21... cxd4 {[%clk 0:00:03.4]} 22. cxd5 {[%clk 0:00:49]} 22...
Nc3 {[%clk 0:00:03.6]} 23. Bxc3 {[%clk 0:00:49.3]} 23... dxc3 {[%clk 0:00:04.3]}
24. Ng4 {[%clk 0:00:45.8]} 24... exd5 {[%clk 0:00:02]} 25. Nxf6+ {[%clk
0:00:45.8]} 25... gxf6 {[%clk 0:00:02.9]} 26. Qxd5 {[%clk 0:00:46.3]} 26... Rc7
{[%clk 0:00:02.5]} 27. Qd6 {[%clk 0:00:45.3]} 1-0

[Event "Early-Titled-Tuesday-Blitz-October-10-2023"]
[Site "Chess.com"]
[Date "2023.10.10"]
[Round "3"]
[White "DTChess"]
[Black "KamlaPasand"]
[Result "0-1"]
[WhiteElo "2620"]
[BlackElo "2477"]
[TimeControl "180+1"]
[EndTime "8:27:17 PDT"]
[Termination "KamlaPasand won by resignation"]

1. e4 {[%clk 0:03:00.9]} 1... e5 {[%clk 0:02:59.7]} 2. Nf3 {[%clk 0:02:59.9]}
2... Nc6 {[%clk 0:02:59.2]} 3. d4 {[%clk 0:02:59.9]} 3... exd4 {[%clk
0:02:59.1]} 4. c3 {[%clk 0:02:59.7]} 4... dxc3 {[%clk 0:02:58.6]} 5. Bc4 {[%clk
0:02:59.5]} 5... cxb2 {[%clk 0:02:59]} 6. Bxb2 {[%clk 0:02:59.4]} 6... Bb4+
{[%clk 0:02:56]} 7. Nbd2 {[%clk 0:02:59.1]} 7... Nf6 {[%clk 0:02:54.6]} 8. O-O
{[%clk 0:02:58.4]} 8... d6 {[%clk 0:02:53.9]} 9. h3 {[%clk 0:02:51.2]} 9... O-O
{[%clk 0:02:53.7]} 10. Qb3 {[%clk 0:02:50.5]} 10... Bxd2 {[%clk 0:02:52.8]} 11.
Nxd2 {[%clk 0:02:50.1]} 11... Na5 {[%clk 0:02:53]} 12. Qc2 {[%clk 0:02:49.3]}
12... Nxc4 {[%clk 0:02:53.1]} 13. Nxc4 {[%clk 0:02:50]} 13... Be6 {[%clk
0:02:50.5]} 14. Rfe1 {[%clk 0:02:49.6]} 14... Bxc4 {[%clk 0:02:45.9]} 15. Qxc4
{[%clk 0:02:49.3]} 15... Nd7 {[%clk 0:02:44.9]} 16. Rad1 {[%clk 0:02:48.4]}
16... Qg5 {[%clk 0:02:42.2]} 17. Qxc7 {[%clk 0:02:38.2]} 17... Ne5 {[%clk
0:02:42.3]} 18. Re3 {[%clk 0:02:33.2]} 18... Rac8 {[%clk 0:02:39.1]} 19. Qxd6
{[%clk 0:01:59.9]} 19... Nc4 {[%clk 0:02:30.3]} 20. Qd4 {[%clk 0:01:41.7]} 20...
Rfd8 {[%clk 0:02:23.4]} 21. Rg3 {[%clk 0:01:28.8]} 21... Rxd4 {[%clk 0:02:20.5]}
22. Bxd4 {[%clk 0:01:28.8]} 22... Qh6 {[%clk 0:02:15.9]} 23. Rdd3 {[%clk
0:01:20.7]} 23... f6 {[%clk 0:02:13.7]} 24. Rdf3 {[%clk 0:01:17.7]} 24... Ne5
{[%clk 0:02:12.4]} 25. Rf5 {[%clk 0:01:18.1]} 25... Qc1+ {[%clk 0:02:06.7]} 26.
Kh2 {[%clk 0:01:18]} 26... Qd2 {[%clk 0:02:01.2]} 27. Be3 {[%clk 0:01:17.4]}
27... Qxa2 {[%clk 0:01:57.2]} 28. Rxf6 {[%clk 0:01:14.8]} 28... Ng6 {[%clk
0:01:48.9]} 29. Rd6 {[%clk 0:01:10.3]} 29... Qf7 {[%clk 0:01:41.3]} 30. Rd5
{[%clk 0:01:04.2]} 30... b6 {[%clk 0:01:38.6]} 31. Rf5 {[%clk 0:01:03.6]} 31...
Qe7 {[%clk 0:01:37]} 32. f3 {[%clk 0:01:03.8]} 32... a5 {[%clk 0:01:34.3]} 33.
Bxb6 {[%clk 0:01:02.6]} 33... a4 {[%clk 0:01:34.7]} 34. Bd4 {[%clk 0:01:02.3]}
34... a3 {[%clk 0:01:34.2]} 35. Ra5 {[%clk 0:01:00.9]} 35... Qb4 {[%clk
0:01:24]} 36. Rd5 {[%clk 0:00:58.1]} 36... a2 {[%clk 0:01:17.5]} 37. Ba1 {[%clk
0:00:45.4]} 37... Qb1 {[%clk 0:01:16.1]} 38. Bd4 {[%clk 0:00:43.5]} 38... a1=Q
{[%clk 0:01:12.4]} 39. Bxa1 {[%clk 0:00:43.4]} 39... Qxa1 {[%clk 0:01:13.3]} 40.
Rg4 {[%clk 0:00:41.3]} 40... Qa7 {[%clk 0:01:08.1]} 41. h4 {[%clk 0:00:39]}
41... Qc7+ {[%clk 0:01:08.2]} 42. g3 {[%clk 0:00:38.1]} 42... Rd8 {[%clk
0:01:08.3]} 43. Rf5 {[%clk 0:00:34.9]} 43... Ne5 {[%clk 0:01:06.2]} 44. Rgf4
{[%clk 0:00:34.3]} 44... Nd3 {[%clk 0:01:00.1]} 45. Rg4 {[%clk 0:00:32.8]} 45...
Qc2+ {[%clk 0:00:59.8]} 0-1

[Event "Early-Titled-Tuesday-Blitz-October-10-2023"]
[Site "Chess.com"]
[Date "2023.10.10"]
[Round "3"]
[White "Witaliss"]
[Black "yosephtaher"]
[Result "1/2-1/2"]
[WhiteElo "2551"]
[BlackElo "2794"]
[TimeControl "180+1"]
[EndTime "8:27:21 PDT"]
[Termination "Game drawn by repetition"]

1. d4 {[%clk 0:03:00.9]} 1... Nf6 {[%clk 0:02:59.8]} 2. Nf3 {[%clk 0:03:00.2]}
2... c5 {[%clk 0:03:00.7]} 3. c3 {[%clk 0:02:59.5]} 3... Qc7 {[%clk 0:03:01.1]}
4. Na3 {[%clk 0:02:56.4]} 4... a6 {[%clk 0:03:00.3]} 5. e3 {[%clk 0:02:54.5]}
5... b5 {[%clk 0:03:00.4]} 6. Nc2 {[%clk 0:02:53.1]} 6... Bb7 {[%clk 0:03:00.9]}
7. a4 {[%clk 0:02:52.3]} 7... c4 {[%clk 0:02:58.2]} 8. axb5 {[%clk 0:02:48.6]}
8... axb5 {[%clk 0:02:59.1]} 9. Rxa8 {[%clk 0:02:48.2]} 9... Bxa8 {[%clk
0:03:00]} 10. Be2 {[%clk 0:02:44.3]} 10... e6 {[%clk 0:02:59.5]} 11. O-O {[%clk
0:02:43.9]} 11... Ng4 {[%clk 0:02:59.3]} 12. g3 {[%clk 0:02:39.9]} 12... h5
{[%clk 0:02:58.2]} 13. Na3 {[%clk 0:02:34.2]} 13... Bxa3 {[%clk 0:02:57.4]} 14.
bxa3 {[%clk 0:02:33.2]} 14... h4 {[%clk 0:02:58.1]} 15. a4 {[%clk 0:02:22.2]}
15... hxg3 {[%clk 0:02:51.7]} 16. fxg3 {[%clk 0:02:13]} 16... Rxh2 {[%clk
0:02:51.1]} 17. Qe1 {[%clk 0:01:58.7]} 17... Rh3 {[%clk 0:02:43.2]} 18. Kg2
{[%clk 0:01:54.1]} 18... Rh2+ {[%clk 0:02:42.9]} 19. Kg1 {[%clk 0:01:53.5]}
19... Rh8 {[%clk 0:02:38.3]} 20. axb5 {[%clk 0:01:52.7]} 20... Be4 {[%clk
0:02:38.2]} 21. Kg2 {[%clk 0:01:41.3]} 21... Rh2+ {[%clk 0:02:33.9]} 22. Kg1
{[%clk 0:01:40.9]} 22... Rh5 {[%clk 0:02:29.4]} 23. Kg2 {[%clk 0:01:39.2]} 23...
Rxb5 {[%clk 0:02:29.6]} 24. Rh1 {[%clk 0:01:38.4]} 24... Ke7 {[%clk 0:02:28.7]}
25. Rh4 {[%clk 0:01:36.3]} 25... f5 {[%clk 0:02:28.7]} 26. Rh7 {[%clk
0:01:25.8]} 26... Kf7 {[%clk 0:02:28.5]} 27. Qh1 {[%clk 0:01:24.2]} 27... Nf6
{[%clk 0:02:27.6]} 28. Rh8 {[%clk 0:01:18.9]} 28... Rb1 {[%clk 0:02:24.7]} 29.
Kf2 {[%clk 0:01:07.1]} 29... Ng4+ {[%clk 0:02:24.6]} 30. Kg2 {[%clk 0:01:05.3]}
30... Nxe3+ {[%clk 0:02:22.8]} 31. Kf2 {[%clk 0:01:05.2]} 31... Ng4+ {[%clk
0:02:22.7]} 32. Kg2 {[%clk 0:01:05.4]} 32... Nf6 {[%clk 0:02:18.2]} 33. Kf2
{[%clk 0:01:04.5]} 33... Ke7 {[%clk 0:02:14]} 34. Qh4 {[%clk 0:00:57.9]} 34...
Bxf3 {[%clk 0:02:04.5]} 35. Ba3+ {[%clk 0:00:47.2]} 35... d6 {[%clk 0:02:01.7]}
36. Bxf3 {[%clk 0:00:46.3]} 36... Nd7 {[%clk 0:01:07.9]} 37. Qg5 {[%clk
0:00:45.4]} 37... Kf7 {[%clk 0:01:08]} 38. Bh5+ {[%clk 0:00:43.6]} 38... Nxh5
{[%clk 0:01:07.1]} 39. Qxh5+ {[%clk 0:00:43.6]} 39... Ke7 {[%clk 0:01:06.1]} 40.
Qg5+ {[%clk 0:00:36]} 40... Kf7 {[%clk 0:01:06.4]} 41. Qh5+ {[%clk 0:00:32.5]}
41... g6 {[%clk 0:01:04.4]} 42. Qh7+ {[%clk 0:00:27.7]} 42... Kf6 {[%clk
0:01:04.6]} 43. Qh4+ {[%clk 0:00:25.4]} 43... Kf7 {[%clk 0:01:04.8]} 44. Qh7+
{[%clk 0:00:25.3]} 44... Kf6 {[%clk 0:01:05.2]} 45. Qh4+ {[%clk 0:00:25.1]}
45... Kg7 {[%clk 0:01:05.8]} 46. Qh7+ {[%clk 0:00:22.6]} 46... Kf6 {[%clk
0:01:05.8]} 1/2-1/2